[Event "LEM Niedersachsen-A-Open 2025"]
[Site "Verden"]
[Date "2025.01.03"]
[Round "4.1"]
[White "Hoellman, Ludger"]
[Black "Laubsch, Bernd"]
[Result "0-1"]
[ECO "D72"]
[WhiteElo "2026"]
[BlackElo "2215"]
[Annotator "TA"]
[PlyCount "80"]
[EventDate "2024.12.27"]
[EventType "swiss"]
[EventCountry "GER"]
[SourceTitle "playchess.com"]
[Source "ChessBase"]
[SourceQuality "1"]
[TimeControl "40/5400+30:1800+30"]

{[%evp 15,79,58,44,48,72,66,88,36,62,47,71,37,120,100,180,168,172,152,181,195,186,179,175,126,111,78,87,-73,-90,-80,-83,-109,-116,-97,-101,-160,-165,-155,-159,-170,-166,-162,-167,-172,-164,-243,-179,-363,-296,-2461,-1437,-29987,-29950,-29984,-29984,-29985,-29985,-29982,-29983,-29982,-6729,-29990,-29991,-29998,-29999,-29999]} 1. d4 {[%emt 0:00:00]} Nf6 {[%emt 0:00:16]} 2. c4 {[%emt 0:00:24]} g6 {[%emt 0:00:08]} 3. g3 {[%emt 0:00:19]} d5 {[%emt 0:00:12]} 4. cxd5 {[%emt 0:00:52]} Nxd5 {[%emt 0:00:04]} 5. e4 {[%emt 0:01:52]} Nb6 {[%emt 0:00:05]} 6. Bg2 {[%emt 0:00:21]} Bg7 {[%emt 0:00:20]} 7. Ne2 {[%emt 0:00:33]} O-O {[%emt 0:03:04]} 8. O-O {[%emt 0:00:42]} Na6 {[%emt 0:05:23]} 9. Nbc3 {[%emt 0:06:25]} Bd7 {[%emt 0:07:13]} 10. b3 {[%emt 0:13:01][%cal Bb2b3,Bb3b4][%mdl 32]} c5 {[%emt 0:02:50]} 11. d5 {[%emt 0:00:30]} (11. dxc5 $16 Nxc5 12. Be3) 11... Rc8 {[%emt 0:07:34]} 12. Be3 {[%emt 0:03:37]} c4 {[%emt 0:09:13]} 13. Bd4 {[%emt 0:01:50]} f6 {[%emt 0:01:39]} (13... e5 $14 14. dxe6 Bxe6) 14. Rb1 {[%emt 0:12:59]} Qc7 {[%emt 0:10:29]} (14... Nc5 $16) 15. b4 {[%emt 0:01:18]} Qd6 {[%emt 0:02:49]} 16. a3 {[%emt 0:08:27]} Rfd8 {[%emt 0:04:40]} 17. Qc2 {[%emt 0:01:36]} e5 {[%emt 0:06:02]} 18. dxe6 {[%emt 0:01:02]} Qxe6 {[%emt 0:01:43]} 19. Rfd1 {[%emt 0:08:36]} (19. a4 $18) 19... Qe8 $16 {[%emt 0:00:57]} 20. Nf4 {[%emt 0:08:27]} Nc7 {[%emt 0:02:08][%cal Ba6c7,Bc7d5,Bd5c3,Bc3b1][%mdl 32]} 21. Nfd5 $2 {[%emt 0:05:00]} (21. Rbc1 $16 {and life is bright.}) 21... Nbxd5 $17 {[%emt 0:11:23]} 22. exd5 {[%emt 0:01:18][%cal Od1e1]} Bf5 {[%emt 0:04:32]} 23. Be4 {[%emt 0:02:05]} Bxe4 {[%emt 0:00:55]} 24. Nxe4 {[%emt 0:01:13]} Nxd5 {[%emt 0:02:22]} 25. Bc5 {[%emt 0:04:54] [#]} ({White should play} 25. Re1 Qd7 26. Nc5) 25... f5 $1 {[%emt 0:04:21]} 26. Nd6 {[%emt 0:05:28] [#]} Rxd6 $1 {[%emt 0:00:12][%mdl 512]} 27. Bxd6 {[%emt 0:00:01] [#]} Nc3 $1 {[%emt 0:01:12]} 28. Re1 {[%emt 0:03:55]} Qc6 {[%emt 0:00:49]} 29. Be5 {[%emt 0:05:42]} Nxb1 {[%emt 0:02:32]} 30. Bxg7 {[%emt 0:00:35]} (30. Qxb1 $142 c3 31. Qa2+ Qc4 32. Qxc4+ Rxc4 33. Bxg7 Kxg7 34. Rc1) 30... Kxg7 {[%emt 0:01:48]} 31. Re7+ $2 {[%emt 0:00:41]} (31. Qxb1 c3 32. Qd3) 31... Kf6 {[%emt 0:02:00]} 32. Rxh7 $2 {[%emt 0:00:54] [#]} (32. Re1) 32... c3 $1 $19 {[%emt 0:03:26] ( -> ...Nd2)} 33. Qd3 {[%emt 0:00:54]} (33. Rh3 Qe4) 33... Nd2 {[%emt 0:00:51]} ({And not} 33... Nxa3 34. Qd4+ Ke6 35. Rg7 $11) 34. Qd4+ {[%emt 0:00:16]} Ke6 {[%emt 0:00:02]} 35. Qg7 {[%emt 0:00:16]} Kd5 {[%emt 0:02:23]} 36. Qf7+ {[%emt 0:00:44]} Qe6 {[%emt 0:00:46]} 37. Qxb7+ {[%emt 0:00:11]} Kc4 {[%emt 0:00:12] ( -> ...Qe1+)} 38. Rh4+ {[%emt 0:01:47]} Kb3 {[%emt 0:00:16]} 39. b5 {[%emt 0:00:27]} Qe1+ {[%emt 0:00:10]} 40. Kg2 {[%emt 0:00:03]} Qf1# {[%emt 0:00:14]} 0-1

[Event "LEM Niedersachsen-A-Open 2025"]
[Site "Verden"]
[Date "2025.01.03"]
[Round "4.2"]
[White "Stotyn, Fabian"]
[Black "Weigand, Anton"]
[Result "1/2-1/2"]
[ECO "B21"]
[WhiteElo "2123"]
[BlackElo "2092"]
[Annotator "TA"]
[PlyCount "116"]
[EventDate "2024.12.27"]
[EventType "swiss"]
[EventCountry "GER"]
[SourceTitle "playchess.com"]
[Source "ChessBase"]
[SourceQuality "1"]
[TimeControl "40/5400+30:1800+30"]

{[%evp 39,116,-174,-19,-24,0,-56,-31,-257,-18,-100,-103,-75,-56,-157,-151,-116,-147,-143,-147,-147,-157,-152,-164,-152,-157,-158,-153,-258,-10,-8,-13,-8,0,0,0,-40,0,0,0,-33,0,-83,-82,-85,-41,-72,-67,-93,-99,-96,-98,-282,-251,-549,-566,-407,-368,-593,-579,-741,-307,-699,0,-41,0,-583,-52,-202,0,0,0,0,0,0,0,0,0,0,0]} 1. e4 {[%emt 0:00:06]} c5 {[%emt 0:00:38]} 2. Be2 {[%emt 0:00:03]} Nc6 {[%emt 0:00:41]} 3. f4 {[%emt 0:01:55]} g6 {[%emt 0:01:59]} 4. Nf3 {[%emt 0:00:50]} Bg7 {[%emt 0:00:07]} 5. c3 {[%emt 0:00:14]} d5 {[%emt 0:05:13]} 6. d3 {[%emt 0:02:57]} e5 {[%emt 0:11:55]} 7. Nxe5 {[%emt 0:04:12]} Nxe5 {[%emt 0:01:12]} 8. fxe5 {[%emt 0:00:05]} Bxe5 {[%emt 0:03:55]} 9. Bf3 {[%emt 0:02:20]} Ne7 {[%emt 0:14:35]} 10. exd5 {[%emt 0:03:17]} O-O {[%emt 0:02:17]} 11. Qb3 {[%emt 0:09:25]} Qc7 {[%emt 0:06:17]} 12. Nd2 {[%emt 0:07:16]} Bxh2 {[%emt 0:00:53]} 13. Ne4 {[%emt 0:01:09]} Nf5 {[%emt 0:00:48]} 14. Bg5 {[%emt 0:10:16]} h6 {[%emt 0:10:31]} 15. Bd2 {[%emt 0:04:56]} Bg3+ {[%emt 0:02:07]} 16. Kd1 {[%emt 0:00:26]} h5 {[%emt 0:08:01]} 17. Kc2 {[%emt 0:02:30]} Bf4 {[%emt 0:02:15]} 18. g4 {[%emt 0:03:32]} hxg4 {[%emt 0:01:59]} 19. d6 {[%emt 0:01:39]} Bxd6 {[%emt 0:01:13]} 20. Nf6+ {[%emt 0:08:57]} Kg7 {[%emt 0:00:08]} 21. Bg5 $1 {[%emt 0:00:53]} Bh2 {[%emt 0:01:49]} (21... gxf3 22. Rh7#) (21... Ne3+ $5 22. Bxe3 Kxf6 $15 (22... gxf3 $2 23. Nd5 $18)) 22. Nd5 {[%emt 0:14:56]} (22. Nxg4 $11 f6 23. Be3 (23. Bxf6+ Rxf6 24. Nxf6 Kxf6 $11)) 22... Qg3 {[%emt 0:02:54]} 23. Be4 $2 {[%emt 0:03:54]} (23. Bf6+ $15 Kh7 24. Rag1 Qf2+ (24... Qxf3 $2 25. Rxh2+ $18) 25. Kb1 gxf3 26. Qd1) 23... Be6 $2 {[%emt 0:02:46]} (23... Qf2+ $1 $19 24. Kc1 f6 (24... Be5 25. Bxf5 gxf5 26. Bh6+ Kg6 27. Bxf8 $11)) 24. Raf1 {[%emt 0:00:35]} (24. Bf6+ $11 Kh7 25. Rag1 Qxg1 26. Rxg1 Bxg1 27. Bxf5 gxf5 28. Qxb7) 24... Bxd5 {[%emt 0:07:03]} (24... Rfd8 {looks sharper.} 25. Kc1 Qe5 26. Rxh2 Bxd5 27. Qc2 Rh8) 25. Qxd5 {[%emt 0:01:09]} Qe5 {[%emt 0:01:13]} 26. Qxe5+ {[%emt 0:00:08]} (26. Qxb7 $15 Rh8 27. Kb1 (27. Qd7 Rab8 $11)) 26... Bxe5 $17 {[%emt 0:00:03]} 27. Bxf5 {[%emt 0:00:06]} gxf5 {[%emt 0:00:25]} 28. Rxf5 {[%emt 0:05:05]} f6 {[%emt 0:01:52]} 29. Be3 {[%emt 0:00:32]} Rh8 {[%emt 0:01:56]} 30. Rhf1 {[%emt 0:02:15]} Rh2+ {[%emt 0:01:06]} 31. Kb3 {[%emt 0:00:10]} Rh3 $1 {[%emt 0:01:37]} 32. Bxc5 {[%emt 0:00:21]} Rxd3 {[%emt 0:00:15]} 33. Be7 {[%emt 0:00:37] [#]} (33. Kc2 $17 Rh3 34. Rg1) 33... Rf3 $2 {[%emt 0:01:18]} (33... g3 $1 $19 {[%mdl 512] And now ...Rd2 would win.} 34. Rg1 (34. Bxf6+ $2 Bxf6 35. R1f4 Rf8 $19) (34. Kc2 Re3) 34... Kg6) 34. R5xf3 {[%emt 0:00:30]} gxf3 {[%emt 0:00:09]} 35. Rxf3 {[%emt 0:00:04]} Kf7 {[%emt 0:00:30]} 36. Bc5 {[%emt 0:00:06]} Ke6 {[%emt 0:00:16]} 37. a4 {[%emt 0:01:54]} a6 {[%emt 0:00:36]} 38. Rh3 {[%emt 0:01:16]} Rc8 {[%emt 0:00:41]} 39. Kb4 {[%emt 0:02:19]} Rc7 {[%emt 0:01:08]} 40. Rd3 {[%emt 0:05:05] [#]} (40. Bb6 $11 {remains equal.} Rg7 41. Kc4) 40... f5 $1 $17 {[%emt 0:02:11]} 41. Bb6 {[%emt 0:31:24]} Rf7 {[%emt 0:32:39]} 42. Bf2 {[%emt 0:00:00]} f4 {[%emt 0:00:00]} 43. Kc5 {[%emt 0:00:00]} Kf5 {[%emt 0:00:00]} 44. Kb6 {[%emt 0:00:00]} Ke4 {[%emt 0:00:00]} 45. Rh3 $2 {[%emt 0:00:00]} (45. Rd1 $17) 45... f3 $19 {[%emt 0:00:00]} 46. Rh5 $2 {[%emt 0:00:00]} (46. Rh1) 46... Bf4 $19 {[%emt 0:00:00]} 47. Bd4 {[%emt 0:00:00]} Bg3 {[%emt 0:00:00]} 48. Rh1 $2 {[%emt 0:00:00]} (48. Rg5 f2 49. Bxf2 Bxf2+ 50. Ka5) 48... f2 $19 {[%emt 0:00:00]} 49. b4 {[%emt 0:00:00]} Kf3 {[%emt 0:00:00]} (49... Kd3 $142 50. b5 axb5 (50... f1=B $2 51. bxa6 Bc7+ 52. Ka7 $19) (50... f1=R $2 51. Rxf1 Rxf1 52. Kxb7 $19) 51. axb5 Ke2 (51... f1=R $2 52. Rxf1 Rxf1 53. Kxb7 $19) (51... f1=N 52. Rg1 $17) (51... f1=B $2 52. Ka7 $19)) 50. Rb1 $2 {[%emt 0:00:00]} (50. Bxf2 Bxf2+ 51. Ka5) 50... Kg2 $2 {[%emt 0:00:00]} (50... Ke2 $19 51. Rb2+ Kd3) 51. Rb2 $1 $15 {[%emt 0:00:00]} Kf3 $2 {[%emt 0:00:00][%mdl 8192]} (51... Bh4 $15 52. c4 Kf3 53. Bxf2 Bxf2+ 54. c5 Bd4) 52. Rb1 $19 {[%emt 0:00:00]} Bf4 $2 {[%emt 0:00:15]} (52... Ke2 $19 53. Rb2+ Kd3) 53. c4 {[%emt 0:00:00]} (53. b5 $15) 53... Be3 $2 {[%emt 0:01:53]} ({Better is} 53... Bc7+ $19 54. Ka7 Bg3) 54. Bxe3 $11 {[%emt 0:00:00]} Kxe3 {[%emt 0:00:02]} 55. c5 {[%emt 0:00:00]} Kd4 {[%emt 0:00:37]} 56. Rf1 {[%emt 0:00:00]} Kc4 {[%emt 0:00:46]} 57. b5 {[%emt 0:00:00]} axb5 {[%emt 0:03:39]} 58. axb5 {[%emt 0:00:00]} Kd3 {[%emt 0:01:13]} 1/2-1/2

[Event "LEM Niedersachsen-A-Open 2025"]
[Site "Verden"]
[Date "2025.01.03"]
[Round "4.3"]
[White "Burkhardt, Holger"]
[Black "Moeller, Jonas"]
[Result "0-1"]
[ECO "C48"]
[WhiteElo "2092"]
[BlackElo "1934"]
[Annotator "NA RC"]
[PlyCount "80"]
[EventDate "2024.12.27"]
[EventType "swiss"]
[EventCountry "GER"]
[SourceTitle "playchess.com"]
[Source "ChessBase"]
[SourceQuality "1"]
[TimeControl "40/5400+30:1800+30"]

1. e4 {[%emt 0:00:02]} e5 {[%emt 0:00:03]} 2. Nf3 {[%emt 0:00:06]} Nc6 {[%emt 0:00:03]} 3. Nc3 {[%emt 0:00:11]} Nf6 {[%emt 0:00:07]} 4. Bb5 {[%emt 0:00:24]} Nd4 {[%emt 0:00:21]} 5. O-O {[%emt 0:00:12]} Nxb5 {[%emt 0:00:29]} 6. Nxb5 {[%emt 0:00:03]} c6 {[%emt 0:00:25]} 7. Nc3 {[%emt 0:00:07]} d6 {[%emt 0:00:13]} 8. d4 {[%emt 0:00:08]} Qc7 {[%emt 0:00:18]} 9. Bg5 {[%emt 0:00:32]} Be7 {[%emt 0:01:50]} 10. Bxf6 {[%emt 0:09:04]} Bxf6 {[%emt 0:00:44]} 11. d5 {[%emt 0:00:35]} O-O {[%emt 0:04:12]} 12. Qd3 {[%emt 0:01:04]} Be7 {[%emt 0:03:18]} 13. a4 {[%emt 0:08:42]} a5 {[%emt 0:08:51]} 14. Nd2 {[%emt 0:03:04]} Kh8 {[%emt 0:13:22]} 15. Nc4 {[%emt 0:08:22]} f5 {[%emt 0:10:08]} 16. f3 {[%emt 0:03:36]} b5 {[%emt 0:10:10]} 17. Ne3 {[%emt 0:07:43]} b4 {[%emt 0:15:01]} 18. dxc6 {[%emt 0:26:52]} bxc3 {[%emt 0:02:28]} 19. Qxc3 {[%emt 0:00:08]} Be6 {[%emt 0:08:33]} 20. Nd5 {[%emt 0:01:34]} Bxd5 {[%emt 0:07:18]} 21. exd5 {[%emt 0:00:01]} Qb6+ {[%emt 0:01:31]} 22. Kh1 {[%emt 0:00:27]} Bf6 {[%emt 0:04:42]} 23. Qa3 {[%emt 0:10:58]} Rfd8 {[%emt 0:02:44]} 24. c3 {[%emt 0:00:30]} e4 {[%emt 0:03:38]} 25. fxe4 {[%emt 0:00:20]} fxe4 {[%emt 0:00:01]} 26. Rae1 {[%emt 0:00:26]} Qa6 {[%emt 0:01:20]} 27. Qb3 {[%emt 0:06:35]} Qd3 {[%emt 0:01:33]} 28. Rd1 {[%emt 0:02:57]} Qe2 {[%emt 0:00:24]} 29. Rfe1 {[%emt 0:07:09]} Qg4 {[%emt 0:00:20]} 30. Qc4 {[%emt 0:00:42]} Re8 {[%emt 0:00:29]} 31. b4 {[%emt 0:01:04]} axb4 {[%emt 0:00:53]} 32. Qxb4 {[%emt 0:00:07]} Qh5 {[%emt 0:00:23]} 33. c7 {[%emt 0:01:59]} Be5 {[%emt 0:00:21]} 34. h3 {[%emt 0:00:18]} Qh4 {[%emt 0:00:35]} 35. Rxe4 {[%emt 0:00:47]} Qg3 {[%emt 0:01:12]} 36. Kg1 {[%emt 0:00:32]} Qh2+ {[%emt 0:00:00]} 37. Kf1 {[%emt 0:00:01]} Rf8+ {[%emt 0:00:22]} 38. Ke1 {[%emt 0:00:34]} Qxg2 {[%emt 0:00:37]} 39. Re2 {[%emt 0:00:27]} Qf1+ {[%emt 0:00:26]} 40. Kd2 {[%emt 0:00:05]} Bf4+ {[%emt 0:00:13]} 0-1

[Event "LEM Niedersachsen-A-Open 2025"]
[Site "Verden"]
[Date "2025.01.03"]
[Round "4.4"]
[White "Bundan, Edward"]
[Black "Becker, Stefan"]
[Result "1/2-1/2"]
[ECO "B33"]
[WhiteElo "1822"]
[BlackElo "2036"]
[Annotator "NA RC"]
[PlyCount "59"]
[EventDate "2024.12.27"]
[EventType "swiss"]
[EventCountry "GER"]
[SourceTitle "playchess.com"]
[Source "ChessBase"]
[SourceQuality "1"]
[TimeControl "40/5400+30:1800+30"]

1. e4 {[%emt 0:00:05]} c5 {[%emt 0:01:10]} 2. Nf3 {[%emt 0:00:07]} Nc6 {[%emt 0:00:28]} 3. d4 {[%emt 0:00:34]} cxd4 {[%emt 0:00:07]} 4. Nxd4 {[%emt 0:00:05]} Nf6 {[%emt 0:00:35]} 5. Nc3 {[%emt 0:00:29]} e5 {[%emt 0:01:00]} 6. Ndb5 {[%emt 0:01:07]} d6 {[%emt 0:00:09]} 7. Bg5 {[%emt 0:00:14]} a6 {[%emt 0:00:33]} 8. Na3 {[%emt 0:00:07]} b5 {[%emt 0:01:47]} 9. Nd5 {[%emt 0:00:08]} Be7 {[%emt 0:00:10]} 10. Bxf6 {[%emt 0:00:08]} Bxf6 {[%emt 0:00:20]} 11. c3 {[%emt 0:00:48]} Rb8 {[%emt 0:03:00]} 12. Nc2 {[%emt 0:00:28]} Bg5 {[%emt 0:02:25]} 13. Nce3 {[%emt 0:03:28]} Be6 {[%emt 0:06:39]} 14. g3 {[%emt 0:03:44]} O-O {[%emt 0:02:57]} 15. Bg2 {[%emt 0:01:42]} g6 {[%emt 0:05:54]} 16. O-O {[%emt 0:00:54]} Bxe3 {[%emt 0:08:35]} 17. Nxe3 {[%emt 0:00:55]} b4 {[%emt 0:00:12]} 18. Qd3 {[%emt 0:05:52]} Qb6 {[%emt 0:08:43]} 19. Kh1 {[%emt 0:06:41]} Ne7 {[%emt 0:03:19]} 20. Rfd1 {[%emt 0:16:55]} Rfd8 {[%emt 0:06:29]} 21. c4 {[%emt 0:02:15]} Kh8 {[%emt 0:09:33]} 22. b3 {[%emt 0:01:52]} Rd7 {[%emt 0:07:09]} 23. Rd2 {[%emt 0:04:09]} f5 {[%emt 0:03:01]} 24. f4 {[%emt 0:03:20]} Rf8 {[%emt 0:03:30]} 25. Rf1 {[%emt 0:03:28]} Nc6 {[%emt 0:03:47]} 26. exf5 {[%emt 0:03:26]} gxf5 {[%emt 0:01:11]} 27. Bxc6 {[%emt 0:01:56]} Qxc6+ {[%emt 0:00:41]} 28. Nd5 {[%emt 0:00:26]} Rg7 {[%emt 0:04:50]} 29. Qf3 {[%emt 0:02:33]} a5 {[%emt 0:01:17]} 30. Qe3 {[%emt 0:04:36]} 1/2-1/2

[Event "LEM Niedersachsen-A-Open 2025"]
[Site "Verden"]
[Date "2025.01.03"]
[Round "4.5"]
[White "Kieselbach, Marvin"]
[Black "Moeller, Tom"]
[Result "1-0"]
[ECO "B40"]
[WhiteElo "2008"]
[BlackElo "1802"]
[Annotator "NA RC"]
[PlyCount "49"]
[EventDate "2024.12.27"]
[EventType "swiss"]
[EventCountry "GER"]
[SourceTitle "playchess.com"]
[Source "ChessBase"]
[SourceQuality "1"]
[TimeControl "40/5400+30:1800+30"]

1. e4 {[%emt 0:00:36]} c5 {[%emt 0:00:07]} 2. Nf3 {[%emt 0:00:27]} e6 {[%emt 0:00:05]} 3. g3 {[%emt 0:00:25]} Nc6 {[%emt 0:01:28]} 4. Bg2 {[%emt 0:00:12]} Qc7 {[%emt 0:02:20]} 5. O-O {[%emt 0:00:39]} Be7 {[%emt 0:00:47]} 6. c3 {[%emt 0:06:13]} Nf6 {[%emt 0:07:58]} 7. Re1 {[%emt 0:00:17]} d5 {[%emt 0:02:00]} 8. exd5 {[%emt 0:00:38]} exd5 {[%emt 0:00:11]} 9. d4 {[%emt 0:00:29]} O-O {[%emt 0:13:52]} 10. dxc5 {[%emt 0:06:28]} Bxc5 {[%emt 0:00:10]} 11. Be3 {[%emt 0:00:25]} Bxe3 {[%emt 0:02:07]} 12. Rxe3 {[%emt 0:00:02]} Bg4 {[%emt 0:01:43]} 13. h3 {[%emt 0:01:33]} Bh5 {[%emt 0:03:10]} 14. Nbd2 {[%emt 0:07:09]} Rfe8 {[%emt 0:00:48]} 15. Nf1 {[%emt 0:03:21]} Rad8 {[%emt 0:08:50]} 16. Qa4 {[%emt 0:06:56]} Ne4 {[%emt 0:05:48]} 17. Rae1 {[%emt 0:01:16]} f5 {[%emt 0:03:30]} 18. g4 {[%emt 0:13:26]} fxg4 {[%emt 0:17:22]} 19. hxg4 {[%emt 0:00:18]} Bg6 {[%emt 0:01:32]} 20. Nh4 {[%emt 0:02:42]} Ne5 {[%emt 0:08:50]} 21. Nxg6 {[%emt 0:00:41]} hxg6 {[%emt 0:00:46]} 22. Bxe4 {[%emt 0:07:32]} b5 {[%emt 0:03:33]} 23. Qb3 {[%emt 0:01:41]} Qd7 {[%emt 0:02:41]} 24. Bxd5+ {[%emt 0:02:00]} Qxd5 {[%emt 0:00:14]} 25. Rxe5 {[%emt 0:00:15]} 1-0

[Event "LEM Niedersachsen-A-Open 2025"]
[Site "Verden"]
[Date "2025.01.03"]
[Round "4.6"]
[White "Zweigait, Leon"]
[Black "Hilker, Bjoern"]
[Result "0-1"]
[ECO "B33"]
[WhiteElo "1865"]
[BlackElo "1993"]
[Annotator "NA RC"]
[PlyCount "40"]
[EventDate "2024.12.27"]
[EventType "swiss"]
[EventCountry "GER"]
[SourceTitle "playchess.com"]
[Source "ChessBase"]
[SourceQuality "1"]
[TimeControl "40/5400+30:1800+30"]

1. e4 {[%emt 0:00:03]} c5 {[%emt 0:00:06]} 2. Nf3 {[%emt 0:00:05]} Nc6 {[%emt 0:00:15]} 3. d4 {[%emt 0:00:09]} cxd4 {[%emt 0:00:05]} 4. Nxd4 {[%emt 0:00:07]} Nf6 {[%emt 0:00:08]} 5. Nc3 {[%emt 0:00:04]} e5 {[%emt 0:00:10]} 6. Ndb5 {[%emt 0:00:07]} d6 {[%emt 0:00:10]} 7. Bg5 {[%emt 0:00:11]} a6 {[%emt 0:00:14]} 8. Na3 {[%emt 0:00:08]} b5 {[%emt 0:00:10]} 9. Nd5 {[%emt 0:00:04]} Qa5+ {[%emt 0:00:56]} 10. Bd2 {[%emt 0:00:25]} Qd8 {[%emt 0:00:08]} 11. c4 {[%emt 0:00:46]} bxc4 {[%emt 0:17:51]} 12. Nxc4 {[%emt 0:00:17]} Nxd5 {[%emt 0:04:42]} 13. exd5 {[%emt 0:00:15]} Nd4 {[%emt 0:07:58]} 14. Ba5 {[%emt 0:06:58]} Qh4 {[%emt 0:01:09]} 15. Bd3 {[%emt 0:02:42]} Bg4 {[%emt 0:21:11]} 16. Qa4+ {[%emt 0:00:24]} Bd7 {[%emt 0:00:14]} 17. Qa3 {[%emt 0:00:47]} e4 {[%emt 0:07:33]} 18. O-O {[%emt 0:05:45]} exd3 {[%emt 0:19:03]} 19. Rfe1+ {[%emt 0:00:33]} Ne2+ {[%emt 0:00:31]} 20. Kh1 {[%emt 0:00:24]} Qxc4 {[%emt 0:00:35]} 0-1

[Event "LEM Niedersachsen-A-Open 2025"]
[Site "Verden"]
[Date "2025.01.03"]
[Round "4.7"]
[White "Lebiedz, Oliver"]
[Black "Renner, Kai"]
[Result "1/2-1/2"]
[ECO "C03"]
[WhiteElo "1939"]
[BlackElo "2080"]
[Annotator "NA RC"]
[PlyCount "75"]
[EventDate "2024.12.27"]
[EventType "swiss"]
[EventCountry "GER"]
[SourceTitle "playchess.com"]
[Source "ChessBase"]
[SourceQuality "1"]
[TimeControl "40/5400+30:1800+30"]

1. e4 {[%emt 0:00:02]} e6 {[%emt 0:00:33]} 2. d4 {[%emt 0:00:08]} d5 {[%emt 0:00:07]} 3. Nd2 {[%emt 0:00:07]} Be7 {[%emt 0:02:50]} 4. c3 {[%emt 0:03:26]} c5 {[%emt 0:01:14]} 5. Ngf3 {[%emt 0:03:58]} Nf6 {[%emt 0:01:29]} 6. Bd3 {[%emt 0:01:10]} Nc6 {[%emt 0:01:29]} 7. dxc5 {[%emt 0:02:18]} dxe4 {[%emt 0:04:11]} 8. Nxe4 {[%emt 0:01:12]} Nxe4 {[%emt 0:00:24]} 9. Bxe4 {[%emt 0:00:02]} Qxd1+ {[%emt 0:00:13]} 10. Kxd1 {[%emt 0:00:05]} Bxc5 {[%emt 0:00:56]} 11. Ke2 {[%emt 0:01:20]} Bd7 {[%emt 0:02:41]} 12. b4 {[%emt 0:01:55]} Bb6 {[%emt 0:01:56]} 13. a4 {[%emt 0:00:59]} f5 {[%emt 0:26:36]} 14. Bc2 {[%emt 0:02:57]} e5 {[%emt 0:05:48]} 15. Bb3 {[%emt 0:09:55]} h6 {[%emt 0:01:27]} 16. a5 {[%emt 0:06:51]} Bd8 {[%emt 0:01:39]} 17. a6 {[%emt 0:07:01]} e4 {[%emt 0:06:47]} 18. Nd2 {[%emt 0:02:05]} b5 {[%emt 0:06:02]} 19. Bd5 {[%emt 0:13:58]} Rc8 {[%emt 0:00:10]} 20. Nb3 {[%emt 0:00:23]} Bf6 {[%emt 0:05:17]} 21. Bd2 {[%emt 0:01:14]} Ne5 {[%emt 0:01:46]} 22. Nc5 {[%emt 0:01:25]} Rc7 {[%emt 0:07:51]} 23. Rhd1 {[%emt 0:04:57]} Bc6 {[%emt 0:01:36]} 24. Bf4 {[%emt 0:02:49]} g5 {[%emt 0:01:04]} 25. Bxe5 {[%emt 0:01:22]} Bxe5 {[%emt 0:00:03]} 26. Ne6 {[%emt 0:00:49]} Rc8 {[%emt 0:00:57]} 27. Rac1 {[%emt 0:06:07]} Ke7 {[%emt 0:01:24]} 28. Nc5 {[%emt 0:03:07]} Rhd8 {[%emt 0:14:48]} 29. Be6 {[%emt 0:12:46]} Rxd1 {[%emt 0:00:09]} 30. Rxd1 {[%emt 0:00:49]} Rc7 {[%emt 0:00:19]} 31. Bxf5 {[%emt 0:02:11]} Bxc3 {[%emt 0:00:20]} 32. Rb1 {[%emt 0:01:45]} Bd5 {[%emt 0:01:55]} 33. Nxe4 {[%emt 0:03:03]} Bxe4 {[%emt 0:00:52]} 34. Bxe4 {[%emt 0:00:06]} Rc4 {[%emt 0:01:40]} 35. Bd3 {[%emt 0:00:22]} Rxb4 {[%emt 0:00:05]} 36. Rxb4 {[%emt 0:01:13]} Bxb4 {[%emt 0:00:04]} 37. Bxb5 {[%emt 0:00:07]} Kf6 {[%emt 0:00:10]} 38. Kf3 {[%emt 0:00:30]} 1/2-1/2

[Event "LEM Niedersachsen-A-Open 2025"]
[Site "Verden"]
[Date "2025.01.03"]
[Round "4.8"]
[White "Aden, Tammo"]
[Black "Scheffner, Jarno"]
[Result "0-1"]
[ECO "E01"]
[WhiteElo "2077"]
[BlackElo "1925"]
[Annotator "NA RC"]
[PlyCount "74"]
[EventDate "2024.12.27"]
[EventType "swiss"]
[EventCountry "GER"]
[SourceTitle "playchess.com"]
[Source "ChessBase"]
[SourceQuality "1"]
[TimeControl "40/5400+30:1800+30"]

1. d4 {[%emt 0:00:03]} d5 {[%emt 0:00:18]} 2. Nf3 {[%emt 0:00:08]} Nf6 {[%emt 0:00:10]} 3. c4 {[%emt 0:00:19]} e6 {[%emt 0:00:24]} 4. g3 {[%emt 0:00:30]} c6 {[%emt 0:00:20]} 5. Bg2 {[%emt 0:00:12]} Nbd7 {[%emt 0:00:08]} 6. O-O {[%emt 0:01:29]} a6 {[%emt 0:00:59]} 7. Qc2 {[%emt 0:02:08]} Be7 {[%emt 0:01:47]} 8. Nbd2 {[%emt 0:02:18]} b5 {[%emt 0:01:03]} 9. b3 {[%emt 0:03:28]} Bb7 {[%emt 0:02:07]} 10. Bb2 {[%emt 0:06:04]} O-O {[%emt 0:00:36]} 11. e4 {[%emt 0:05:23]} dxe4 {[%emt 0:00:48]} 12. Nxe4 {[%emt 0:03:25]} Nxe4 {[%emt 0:03:31]} 13. Qxe4 {[%emt 0:00:05]} Bf6 {[%emt 0:00:14]} 14. Rfd1 {[%emt 0:11:19]} Ra7 {[%emt 0:03:12]} 15. Qe2 {[%emt 0:05:10]} Qb6 {[%emt 0:06:46]} 16. Rac1 {[%emt 0:06:43]} Rd8 {[%emt 0:01:43]} 17. Ne5 {[%emt 0:05:20]} b4 {[%emt 0:19:01]} 18. Be4 {[%emt 0:07:38]} Nf8 {[%emt 0:08:31]} 19. c5 {[%emt 0:05:57]} Qc7 {[%emt 0:01:04]} 20. Qf3 {[%emt 0:01:47]} Bxe5 {[%emt 0:06:16]} 21. dxe5 {[%emt 0:00:15]} Rxd1+ {[%emt 0:01:08]} 22. Rxd1 {[%emt 0:00:17]} Qa5 {[%emt 0:01:19]} 23. Bc1 {[%emt 0:11:51]} Qxa2 {[%emt 0:01:36]} 24. Bg5 {[%emt 0:05:07]} Qb2 {[%emt 0:02:55]} 25. Qe3 {[%emt 0:04:18]} Ra8 {[%emt 0:00:33]} 26. Rd6 {[%emt 0:01:41]} Rc8 {[%emt 0:03:13]} 27. Kg2 {[%emt 0:03:44]} a5 {[%emt 0:00:32]} 28. Bd8 {[%emt 0:02:31]} Qa1 {[%emt 0:03:25]} 29. Be7 {[%emt 0:02:12]} Ba6 {[%emt 0:01:12]} 30. h3 {[%emt 0:00:55]} Ng6 {[%emt 0:01:42]} 31. Qd2 {[%emt 0:01:25]} f5 {[%emt 0:10:24]} 32. exf6 {[%emt 0:01:05]} gxf6 {[%emt 0:00:33]} 33. Bxg6 {[%emt 0:00:59]} hxg6 {[%emt 0:00:10]} 34. Rxe6 {[%emt 0:00:53]} Qb1 {[%emt 0:14:29]} 35. Bxf6 {[%emt 0:00:47]} Bf1+ {[%emt 0:01:16]} 36. Kh2 {[%emt 0:00:25]} Qf5 {[%emt 0:00:09]} 37. f4 {[%emt 0:00:38]} Qxe6 {[%emt 0:00:19]} 0-1